[Event "Titled Tuesday Blitz April 18 Early 2023"]
[White "Deac, Bogdan-Daniel"]
[Black "Sokolovsky, Yahli"]
[WhiteFideId "1226380"]
[BlackFideId "2820242"]
[WhiteElo "2649"]
[BlackElo "2316"]
[Result "1-0"]
[Round "02"]
[TimeControl "180+2"]
[Date "2023.04.18"]
[WhiteClock "0:00:04"]
[BlackClock "0:00:02"]

1. b3 {[%clk 0:03:00]}  Nf6 {[%clk 0:02:55]} 2. Bb2 {[%clk 0:03:01]}  g6 {[%clk 0:02:56]} 3. Nf3 {[%clk 0:03:01]}  Bg7 {[%clk 0:02:56]} 4. g3 {[%clk 0:03:01]}  O-O {[%clk 0:02:56]} 5. Bg2 {[%clk 0:03:02]}  b6 {[%clk 0:02:51]} 6. Ne5 {[%clk 0:02:51]}  d5 {[%clk 0:02:45]} 7. c4 {[%clk 0:02:49]}  Bb7 {[%clk 0:02:45]} 8. O-O {[%clk 0:02:48]}  Qc8 {[%clk 0:02:43]} 9. cxd5 {[%clk 0:02:47]}  Bxd5 {[%clk 0:02:43]} 10. Nf3 {[%clk 0:02:39]}  c5 {[%clk 0:02:22]} 11. d3 {[%clk 0:02:38]}  Qb7 {[%clk 0:02:20]} 12. a3 {[%clk 0:02:32]}  a5 {[%clk 0:02:08]} 13. e4 {[%clk 0:02:09]}  Bc6 {[%clk 0:02:07]} 14. Nc3 {[%clk 0:02:03]}  Na6 {[%clk 0:01:57]} 15. Ne5 {[%clk 0:01:59]}  Be8 {[%clk 0:01:49]} 16. Qc2 {[%clk 0:01:50]}  Nc7 {[%clk 0:01:37]} 17. f4 {[%clk 0:01:41]}  Ne6 {[%clk 0:01:34]} 18. Nd5 {[%clk 0:01:26]}  Rd8 {[%clk 0:01:05]} 19. Ne3 {[%clk 0:01:14]}  Nd4 {[%clk 0:00:59]} 20. Bxd4 {[%clk 0:01:13]}  Rxd4 {[%clk 0:01:00]} 21. Rab1 {[%clk 0:00:56]}  Bb5 {[%clk 0:00:55]} 22. a4 {[%clk 0:00:48]}  Ba6 {[%clk 0:00:54]} 23. N3c4 {[%clk 0:00:46]}  Rfd8 {[%clk 0:00:53]} 24. Rbd1 {[%clk 0:00:44]}  Qc7 {[%clk 0:00:52]} 25. Qe2 {[%clk 0:00:34]}  Bb7 {[%clk 0:00:46]} 26. Kh1 {[%clk 0:00:25]}  Bc8 {[%clk 0:00:44]} 27. Rd2 {[%clk 0:00:16]}  Be6 {[%clk 0:00:43]} 28. f5 {[%clk 0:00:10]}  Bc8 {[%clk 0:00:38]} 29. Nf3 {[%clk 0:00:10]}  R4d7 {[%clk 0:00:30]} 30. e5 {[%clk 0:00:10]}  Nd5 {[%clk 0:00:27]} 31. e6 {[%clk 0:00:10]}  fxe6 {[%clk 0:00:22]} 32. Qxe6+ {[%clk 0:00:04]}  Kh8 {[%clk 0:00:19]} 33. Nfe5 {[%clk 0:00:04]}  Rd6 {[%clk 0:00:12]} 34. Nf7+ {[%clk 0:00:04]}  Kg8 {[%clk 0:00:12]} 35. Nxd8+ {[%clk 0:00:04]}  Bxe6 {[%clk 0:00:12]} 36. Nxe6 {[%clk 0:00:05]}  Qd7 {[%clk 0:00:11]} 37. Nxd6 {[%clk 0:00:05]}  Qxd6 {[%clk 0:00:12]} 38. Nxg7 {[%clk 0:00:06]}  Kxg7 {[%clk 0:00:12]} 39. fxg6 {[%clk 0:00:06]}  hxg6 {[%clk 0:00:13]} 40. Re2 {[%clk 0:00:07]}  Nc3 {[%clk 0:00:10]} 41. Re3 {[%clk 0:00:07]}  e5 {[%clk 0:00:06]} 42. Rfe1 {[%clk 0:00:07]}  Qd4 {[%clk 0:00:06]} 43. Rxe5 {[%clk 0:00:06]}  Qxd3 {[%clk 0:00:06]} 44. Re7+ {[%clk 0:00:07]}  Kh6 {[%clk 0:00:06]} 45. R7e3 {[%clk 0:00:07]}  Qd4 {[%clk 0:00:06]} 46. Re6 {[%clk 0:00:07]}  c4 {[%clk 0:00:04]} 47. bxc4 {[%clk 0:00:06]}  Qxc4 {[%clk 0:00:04]} 48. h4 {[%clk 0:00:06]}  Qxa4 {[%clk 0:00:04]} 49. h5 {[%clk 0:00:05]}  Kxh5 {[%clk 0:00:03]} 50. Rxb6 {[%clk 0:00:06]}  Qg4 {[%clk 0:00:03]} 51. Kh2 {[%clk 0:00:06]}  Kh6 {[%clk 0:00:02]} 52. Re5 {[%clk 0:00:05]}  Qd4 {[%clk 0:00:02]} 53. Ree6 {[%clk 0:00:05]}  Qd3 {[%clk 0:00:02]} 54. Rbd6 {[%clk 0:00:04]}  Qc2 {[%clk 0:00:02]} 55. Rc6 {[%clk 0:00:04]}  Qd3 {[%clk 0:00:02]} 56. Red6 {[%clk 0:00:04]}  Qe3 {[%clk 0:00:01]} 57. Rxg6+ {[%clk 0:00:04]}  Kh7 {[%clk 0:00:02]} 58. Rge6 {[%clk 0:00:04]}  Qd2 {[%clk 0:00:02]} 59. Rc7+ {[%clk 0:00:04]} 1-0


[Site "https://www.chess.com"]

[Event "Titled Tuesday Blitz April 18 Early 2023"]
[White "Terry, Renato"]
[Black "Kucuksari, Kaan"]
[WhiteFideId "3803457"]
[BlackFideId "6380166"]
[WhiteElo "2575"]
[BlackElo "2364"]
[Result "1-0"]
[Round "02"]
[TimeControl "180+2"]
[Date "2023.04.18"]
[WhiteClock "0:01:04"]
[BlackClock "0:00:03"]

1. e4 {[%clk 0:03:00]}  c5 {[%clk 0:02:59]} 2. Nf3 {[%clk 0:03:00]}  e6 {[%clk 0:02:59]} 3. Nc3 {[%clk 0:02:59]}  a6 {[%clk 0:02:58]} 4. g3 {[%clk 0:02:59]}  b5 {[%clk 0:02:58]} 5. Bg2 {[%clk 0:03:00]}  Bb7 {[%clk 0:02:58]} 6. d3 {[%clk 0:03:00]}  d6 {[%clk 0:02:58]} 7. O-O {[%clk 0:03:00]}  Nf6 {[%clk 0:02:57]} 8. Ng5 {[%clk 0:02:52]}  Nbd7 {[%clk 0:02:53]} 9. f4 {[%clk 0:02:51]}  h6 {[%clk 0:02:38]} 10. Nh3 {[%clk 0:02:52]}  Be7 {[%clk 0:02:31]} 11. g4 {[%clk 0:02:52]}  Qc7 {[%clk 0:02:21]} 12. g5 {[%clk 0:02:48]}  hxg5 {[%clk 0:02:15]} 13. fxg5 {[%clk 0:02:49]}  Nh7 {[%clk 0:02:16]} 14. Ne2 {[%clk 0:02:14]}  Ne5 {[%clk 0:02:00]} 15. c3 {[%clk 0:02:14]}  c4 {[%clk 0:01:48]} 16. d4 {[%clk 0:02:14]}  Nd3 {[%clk 0:01:48]} 17. g6 {[%clk 0:02:02]}  fxg6 {[%clk 0:01:49]} 18. Nef4 {[%clk 0:02:02]}  Nxf4 {[%clk 0:01:24]} 19. Nxf4 {[%clk 0:02:03]}  Nf8 {[%clk 0:01:25]} 20. Qg4 {[%clk 0:02:02]}  Rh4 {[%clk 0:00:59]} 21. Qg3 {[%clk 0:02:02]}  O-O-O {[%clk 0:00:55]} 22. d5 {[%clk 0:01:55]}  e5 {[%clk 0:00:43]} 23. Ne2 {[%clk 0:01:42]}  Nd7 {[%clk 0:00:28]} 24. Rf7 {[%clk 0:01:40]}  Bf6 {[%clk 0:00:10]} 25. Rxf6 {[%clk 0:01:40]}  Nxf6 {[%clk 0:00:11]} 26. Qxh4 {[%clk 0:01:40]}  Kb8 {[%clk 0:00:11]} 27. Be3 {[%clk 0:01:40]}  Rf8 {[%clk 0:00:09]} 28. Rf1 {[%clk 0:01:40]}  a5 {[%clk 0:00:09]} 29. Qf2 {[%clk 0:01:39]}  Bc8 {[%clk 0:00:07]} 30. Bb6 {[%clk 0:01:38]}  Qb7 {[%clk 0:00:06]} 31. Bxa5 {[%clk 0:01:33]}  Rh8 {[%clk 0:00:04]} 32. Qb6 {[%clk 0:01:33]}  Qxb6+ {[%clk 0:00:03]} 33. Bxb6 {[%clk 0:01:34]}  Ng4 {[%clk 0:00:02]} 34. h3 {[%clk 0:01:34]}  Nf6 {[%clk 0:00:02]} 35. Be3 {[%clk 0:01:34]}  Bxh3 {[%clk 0:00:03]} 36. Ng3 {[%clk 0:01:33]}  Bxg2 {[%clk 0:00:03]} 37. Kxg2 {[%clk 0:01:33]}  Kc7 {[%clk 0:00:02]} 38. Bg5 {[%clk 0:01:34]}  Rf8 {[%clk 0:00:03]} 39. b3 {[%clk 0:01:30]}  Kd7 {[%clk 0:00:03]} 40. Bxf6 {[%clk 0:01:26]}  gxf6 {[%clk 0:00:03]} 41. a4 {[%clk 0:01:16]}  cxb3 {[%clk 0:00:02]} 42. axb5 {[%clk 0:01:17]}  f5 {[%clk 0:00:02]} 43. exf5 {[%clk 0:01:12]}  gxf5 {[%clk 0:00:03]} 44. Rb1 {[%clk 0:01:12]}  f4 {[%clk 0:00:03]} 45. Ne4 {[%clk 0:01:12]}  f3+ {[%clk 0:00:03]} 46. Kf2 {[%clk 0:01:13]}  Rf4 {[%clk 0:00:04]} 47. Nd2 {[%clk 0:01:08]}  e4 {[%clk 0:00:04]} 48. Rxb3 {[%clk 0:01:08]}  Rh4 {[%clk 0:00:04]} 49. Ke3 {[%clk 0:01:08]}  Rh2 {[%clk 0:00:05]} 50. Nxe4 {[%clk 0:01:09]}  Rh3 {[%clk 0:00:03]} 51. b6 {[%clk 0:01:08]}  Kc8 {[%clk 0:00:04]} 52. Nxd6+ {[%clk 0:01:08]}  Kb8 {[%clk 0:00:04]} 53. Rb4 {[%clk 0:01:08]}  Rh6 {[%clk 0:00:03]} 54. Ne4 {[%clk 0:01:07]}  Rh3 {[%clk 0:00:03]} 55. d6 {[%clk 0:01:06]}  Rh7 {[%clk 0:00:02]} 56. Kxf3 {[%clk 0:01:03]}  Rf7+ {[%clk 0:00:02]} 57. Ke3 {[%clk 0:01:04]}  Rd7 {[%clk 0:00:03]} 58. c4 {[%clk 0:01:04]}  Rg7 {[%clk 0:00:03]} 59. c5 {[%clk 0:01:04]} 1-0


[Site "https://www.chess.com"]

[Event "Titled Tuesday Blitz April 18 Early 2023"]
[White "Narayanan.S.L"]
[Black "Munkhgal, Gombosuren"]
[WhiteFideId "5058422"]
[BlackFideId "4901266"]
[WhiteElo "2547"]
[BlackElo "2528"]
[Result "1-0"]
[Round "02"]
[TimeControl "180+2"]
[Date "2023.04.18"]
[WhiteClock "0:01:17"]
[BlackClock "0:00:11"]

1. e4 {[%clk 0:02:58]}  e6 {[%clk 0:02:59]} 2. d4 {[%clk 0:02:57]}  d5 {[%clk 0:03:00]} 3. Nd2 {[%clk 0:02:55]}  c5 {[%clk 0:02:57]} 4. Ngf3 {[%clk 0:02:54]}  Nc6 {[%clk 0:02:57]} 5. Bb5 {[%clk 0:02:53]}  Nf6 {[%clk 0:02:47]} 6. exd5 {[%clk 0:02:52]}  exd5 {[%clk 0:02:46]} 7. O-O {[%clk 0:02:52]}  Be7 {[%clk 0:02:46]} 8. dxc5 {[%clk 0:02:52]}  O-O {[%clk 0:02:44]} 9. Nb3 {[%clk 0:02:51]}  Bg4 {[%clk 0:02:43]} 10. h3 {[%clk 0:02:51]}  Bh5 {[%clk 0:02:43]} 11. Be2 {[%clk 0:02:51]}  Ne4 {[%clk 0:02:42]} 12. Be3 {[%clk 0:02:51]}  a5 {[%clk 0:02:42]} 13. a4 {[%clk 0:02:50]}  Bf6 {[%clk 0:02:36]} 14. c3 {[%clk 0:02:49]}  Re8 {[%clk 0:02:37]} 15. Re1 {[%clk 0:02:48]}  Qd7 {[%clk 0:02:32]} 16. Nfd4 {[%clk 0:02:46]}  Bg6 {[%clk 0:02:28]} 17. Bg4 {[%clk 0:02:40]}  Qe7 {[%clk 0:02:17]} 18. Nb5 {[%clk 0:02:38]}  Ne5 {[%clk 0:02:05]} 19. Be2 {[%clk 0:02:04]}  Rad8 {[%clk 0:02:04]} 20. Bf1 {[%clk 0:02:04]}  Nc4 {[%clk 0:02:04]} 21. Qc1 {[%clk 0:01:57]}  Bh4 {[%clk 0:01:46]} 22. Bd4 {[%clk 0:01:37]}  Bg5 {[%clk 0:01:25]} 23. Qc2 {[%clk 0:01:38]}  Qd7 {[%clk 0:01:12]} 24. Bd3 {[%clk 0:01:38]}  Ne5 {[%clk 0:00:56]} 25. Bxe5 {[%clk 0:01:36]}  Rxe5 {[%clk 0:00:57]} 26. f3 {[%clk 0:01:37]}  Bh4 {[%clk 0:00:55]} 27. fxe4 {[%clk 0:01:36]}  dxe4 {[%clk 0:00:54]} 28. Bc4 {[%clk 0:01:33]}  e3 {[%clk 0:00:53]} 29. Qe2 {[%clk 0:01:33]}  Bf2+ {[%clk 0:00:53]} 30. Kh1 {[%clk 0:01:32]}  Be4 {[%clk 0:00:37]} 31. Qg4 {[%clk 0:01:32]}  Qxg4 {[%clk 0:00:27]} 32. hxg4 {[%clk 0:01:33]}  Rg5 {[%clk 0:00:27]} 33. Rad1 {[%clk 0:01:25]}  Rxd1 {[%clk 0:00:17]} 34. Rxd1 {[%clk 0:01:25]}  h5 {[%clk 0:00:18]} 35. Bxf7+ {[%clk 0:01:21]}  Kxf7 {[%clk 0:00:11]} 36. Nd6+ {[%clk 0:01:20]}  Ke7 {[%clk 0:00:09]} 37. Nxe4 {[%clk 0:01:20]}  Rxg4 {[%clk 0:00:10]} 38. Nxf2 {[%clk 0:01:20]}  exf2 {[%clk 0:00:11]} 39. g3 {[%clk 0:01:19]}  Re4 {[%clk 0:00:11]} 40. Rf1 {[%clk 0:01:17]} 1-0


[Site "https://www.chess.com"]

[Event "Titled Tuesday Blitz April 18 Early 2023"]
[White "Kim, Sergey"]
[Black "Paravyan, David"]
[WhiteFideId "13700570"]
[BlackFideId "4194985"]
[WhiteElo "2608"]
[BlackElo "2563"]
[Result "0-1"]
[Round "02"]
[TimeControl "180+2"]
[Date "2023.04.18"]
[WhiteClock "0:00:13"]
[BlackClock "0:00:22"]

1. d4 {[%clk 0:03:00]}  Nf6 {[%clk 0:02:59]} 2. c4 {[%clk 0:03:00]}  g6 {[%clk 0:02:59]} 3. Nc3 {[%clk 0:03:01]}  d5 {[%clk 0:02:55]} 4. cxd5 {[%clk 0:03:00]}  Nxd5 {[%clk 0:02:56]} 5. e4 {[%clk 0:03:00]}  Nxc3 {[%clk 0:02:55]} 6. bxc3 {[%clk 0:03:01]}  Bg7 {[%clk 0:02:56]} 7. Bc4 {[%clk 0:03:01]}  c5 {[%clk 0:02:56]} 8. Ne2 {[%clk 0:03:02]}  O-O {[%clk 0:02:55]} 9. O-O {[%clk 0:03:02]}  Nc6 {[%clk 0:02:56]} 10. Be3 {[%clk 0:03:02]}  e6 {[%clk 0:02:56]} 11. Qd2 {[%clk 0:03:01]}  Qa5 {[%clk 0:02:52]} 12. Bh6 {[%clk 0:02:49]}  cxd4 {[%clk 0:02:48]} 13. Bxg7 {[%clk 0:02:49]}  Kxg7 {[%clk 0:02:49]} 14. Nxd4 {[%clk 0:02:49]}  Bd7 {[%clk 0:02:30]} 15. Rab1 {[%clk 0:02:41]}  Ne5 {[%clk 0:02:03]} 16. Bb5 {[%clk 0:02:32]}  Qd8 {[%clk 0:01:54]} 17. f4 {[%clk 0:02:08]}  Bxb5 {[%clk 0:01:50]} 18. Rxb5 {[%clk 0:02:08]}  Nc4 {[%clk 0:01:41]} 19. Qe2 {[%clk 0:02:00]}  Nd6 {[%clk 0:01:39]} 20. Rg5 {[%clk 0:01:54]}  Rc8 {[%clk 0:01:34]} 21. Rg3 {[%clk 0:01:49]}  Kh8 {[%clk 0:01:17]} 22. f5 {[%clk 0:01:35]}  e5 {[%clk 0:01:10]} 23. Nf3 {[%clk 0:01:09]}  Rxc3 {[%clk 0:01:06]} 24. Nxe5 {[%clk 0:01:03]}  Qb6+ {[%clk 0:00:54]} 25. Kh1 {[%clk 0:00:59]}  Rxg3 {[%clk 0:00:54]} 26. hxg3 {[%clk 0:00:59]}  Qd4 {[%clk 0:00:55]} 27. Nd7 {[%clk 0:00:50]}  Nxe4 {[%clk 0:00:49]} 28. Kh2 {[%clk 0:00:44]}  Nxg3 {[%clk 0:00:41]} 29. Kxg3 {[%clk 0:00:39]}  Qxd7 {[%clk 0:00:42]} 30. fxg6 {[%clk 0:00:33]}  Qd6+ {[%clk 0:00:35]} 31. Kh3 {[%clk 0:00:25]}  hxg6 {[%clk 0:00:29]} 32. Rd1 {[%clk 0:00:22]}  Qf6 {[%clk 0:00:25]} 33. Rf1 {[%clk 0:00:18]}  Qd4 {[%clk 0:00:23]} 34. g3 {[%clk 0:00:12]}  Kg7 {[%clk 0:00:22]} 35. Rf4 {[%clk 0:00:12]}  Rh8+ {[%clk 0:00:21]} 36. Kg2 {[%clk 0:00:13]}  Qd5+ {[%clk 0:00:22]} 0-1


[Site "https://www.chess.com"]

[Event "Titled Tuesday Blitz April 18 Early 2023"]
[White "Alekseenko, Kirill"]
[Black "Tasev, Dejan"]
[WhiteFideId "4135539"]
[BlackFideId "936618"]
[WhiteElo "2683"]
[BlackElo "2244"]
[Result "1-0"]
[Round "02"]
[TimeControl "180+2"]
[Date "2023.04.18"]
[WhiteClock "0:00:44"]
[BlackClock "0:00:11"]

1. d4 {[%clk 0:03:00]}  Nf6 {[%clk 0:02:59]} 2. Nc3 {[%clk 0:03:01]}  d6 {[%clk 0:02:58]} 3. e4 {[%clk 0:02:57]}  g6 {[%clk 0:02:58]} 4. f4 {[%clk 0:02:56]}  Bg7 {[%clk 0:02:58]} 5. Nf3 {[%clk 0:02:56]}  O-O {[%clk 0:02:58]} 6. Bd3 {[%clk 0:02:57]}  c5 {[%clk 0:02:58]} 7. dxc5 {[%clk 0:02:55]}  dxc5 {[%clk 0:02:58]} 8. O-O {[%clk 0:02:49]}  Nc6 {[%clk 0:02:58]} 9. e5 {[%clk 0:02:50]}  Ng4 {[%clk 0:02:56]} 10. h3 {[%clk 0:02:40]}  Nh6 {[%clk 0:02:56]} 11. g4 {[%clk 0:02:39]}  b6 {[%clk 0:02:54]} 12. Be4 {[%clk 0:02:35]}  Bb7 {[%clk 0:02:53]} 13. Qxd8 {[%clk 0:02:34]}  Rfxd8 {[%clk 0:02:49]} 14. Be3 {[%clk 0:02:35]}  f6 {[%clk 0:02:44]} 15. Rad1 {[%clk 0:02:25]}  Nf7 {[%clk 0:02:40]} 16. Bd5 {[%clk 0:02:18]}  Kf8 {[%clk 0:02:37]} 17. Rd2 {[%clk 0:01:58]}  e6 {[%clk 0:02:21]} 18. Bxe6 {[%clk 0:01:46]}  Rxd2 {[%clk 0:02:21]} 19. Nxd2 {[%clk 0:01:43]}  fxe5 {[%clk 0:02:16]} 20. fxe5 {[%clk 0:01:40]}  Nxe5 {[%clk 0:01:56]} 21. Nc4 {[%clk 0:01:39]}  Nf3+ {[%clk 0:01:34]} 22. Kf2 {[%clk 0:01:33]}  Bxc3 {[%clk 0:00:55]} 23. bxc3 {[%clk 0:01:28]}  Ke7 {[%clk 0:00:49]} 24. Bxf7 {[%clk 0:01:27]}  Rf8 {[%clk 0:00:37]} 25. Rd1 {[%clk 0:01:12]}  Ba8 {[%clk 0:00:15]} 26. Nd6 {[%clk 0:00:47]}  Ne5 {[%clk 0:00:11]} 27. Bg5+ {[%clk 0:00:47]}  Kd7 {[%clk 0:00:11]} 28. Nc4+ {[%clk 0:00:44]} 1-0


[Site "https://www.chess.com"]

[Event "Titled Tuesday Blitz April 18 Early 2023"]
[White "MKlose11"]
[Black "Kovalenko, Igor"]
[BlackFideId "14117908"]
[WhiteElo "2579"]
[BlackElo "2574"]
[Result "0-1"]
[Round "02"]
[TimeControl "180+2"]
[Date "2023.04.18"]
[WhiteClock "0:00:02"]
[BlackClock "0:01:42"]

1. e4 {[%clk 0:03:00]}  c5 {[%clk 0:02:56]} 2. Nc3 {[%clk 0:02:57]}  Nc6 {[%clk 0:02:56]} 3. g3 {[%clk 0:02:57]}  g6 {[%clk 0:02:54]} 4. Bg2 {[%clk 0:02:58]}  Bg7 {[%clk 0:02:55]} 5. d3 {[%clk 0:02:58]}  d6 {[%clk 0:02:56]} 6. f4 {[%clk 0:02:54]}  Rb8 {[%clk 0:02:57]} 7. Nf3 {[%clk 0:02:53]}  Bg4 {[%clk 0:02:57]} 8. O-O {[%clk 0:02:53]}  Nf6 {[%clk 0:02:56]} 9. h3 {[%clk 0:02:53]}  Bxf3 {[%clk 0:02:55]} 10. Qxf3 {[%clk 0:02:51]}  Nd7 {[%clk 0:02:56]} 11. Be3 {[%clk 0:02:50]}  b5 {[%clk 0:02:56]} 12. e5 {[%clk 0:02:01]}  Nd4 {[%clk 0:02:55]} 13. Bxd4 {[%clk 0:01:24]}  cxd4 {[%clk 0:02:56]} 14. Ne2 {[%clk 0:00:36]}  dxe5 {[%clk 0:02:55]} 15. fxe5 {[%clk 0:00:34]}  Nxe5 {[%clk 0:02:56]} 16. Qe4 {[%clk 0:00:34]}  Qb6 {[%clk 0:02:35]} 17. Kh1 {[%clk 0:00:29]}  Rd8 {[%clk 0:02:34]} 18. c3 {[%clk 0:00:22]}  f5 {[%clk 0:02:26]} 19. Qh4 {[%clk 0:00:11]}  dxc3 {[%clk 0:02:26]} 20. Nxc3 {[%clk 0:00:10]}  Nxd3 {[%clk 0:02:24]} 21. Nd5 {[%clk 0:00:09]}  Qc5 {[%clk 0:02:13]} 22. b4 {[%clk 0:00:09]}  Qd6 {[%clk 0:02:04]} 23. Rad1 {[%clk 0:00:09]}  Nb2 {[%clk 0:01:59]} 24. Rde1 {[%clk 0:00:05]}  Rd7 {[%clk 0:01:57]} 25. Re2 {[%clk 0:00:04]}  Nc4 {[%clk 0:01:57]} 26. Rfe1 {[%clk 0:00:05]}  e5 {[%clk 0:01:57]} 27. g4 {[%clk 0:00:03]}  O-O {[%clk 0:01:57]} 28. gxf5 {[%clk 0:00:01]}  Rxf5 {[%clk 0:01:55]} 29. Be4 {[%clk 0:00:01]}  Rf8 {[%clk 0:01:46]} 30. Qg4 {[%clk 0:00:02]}  Rdf7 {[%clk 0:01:46]} 31. Rd1 {[%clk 0:00:01]}  Rf1+ {[%clk 0:01:42]} 32. Rxf1 {[%clk 0:00:01]}  Rxf1+ {[%clk 0:01:43]} 33. Kg2 {[%clk 0:00:02]}  Rf8 {[%clk 0:01:42]} 34. Qf5 {[%clk 0:00:02]}  gxf5 {[%clk 0:01:42]} 0-1


[Site "https://www.chess.com"]

[Event "Titled Tuesday Blitz April 18 Early 2023"]
[White "Ibadov, Dashgyn"]
[Black "Indjic, Aleksandar"]
[WhiteFideId "24107514"]
[BlackFideId "911925"]
[WhiteElo "2208"]
[BlackElo "2614"]
[Result "0-1"]
[Round "02"]
[TimeControl "180+2"]
[Date "2023.04.18"]
[WhiteClock "0:00:06"]
[BlackClock "0:01:49"]

1. e4 {[%clk 0:03:00]}  e5 {[%clk 0:02:58]} 2. Nf3 {[%clk 0:03:00]}  Nc6 {[%clk 0:02:58]} 3. Nc3 {[%clk 0:02:59]}  Nf6 {[%clk 0:02:57]} 4. Bb5 {[%clk 0:02:58]}  Bd6 {[%clk 0:02:55]} 5. d3 {[%clk 0:02:52]}  O-O {[%clk 0:02:54]} 6. a3 {[%clk 0:02:51]}  a6 {[%clk 0:02:54]} 7. Bc4 {[%clk 0:02:47]}  Bc5 {[%clk 0:02:50]} 8. Bg5 {[%clk 0:02:43]}  Be7 {[%clk 0:02:48]} 9. O-O {[%clk 0:02:36]}  d6 {[%clk 0:02:48]} 10. h3 {[%clk 0:02:27]}  Be6 {[%clk 0:02:47]} 11. Nd2 {[%clk 0:02:21]}  Nd4 {[%clk 0:02:40]} 12. Ne2 {[%clk 0:01:49]}  Nxe2+ {[%clk 0:02:33]} 13. Qxe2 {[%clk 0:01:50]}  b5 {[%clk 0:02:32]} 14. Bxe6 {[%clk 0:01:47]}  fxe6 {[%clk 0:02:33]} 15. c3 {[%clk 0:01:38]}  Nd7 {[%clk 0:02:32]} 16. Bxe7 {[%clk 0:01:28]}  Qxe7 {[%clk 0:02:33]} 17. d4 {[%clk 0:01:29]}  Qf6 {[%clk 0:02:21]} 18. Qe3 {[%clk 0:01:27]}  Qf4 {[%clk 0:02:17]} 19. Qxf4 {[%clk 0:01:17]}  Rxf4 {[%clk 0:02:15]} 20. g3 {[%clk 0:01:16]}  Rff8 {[%clk 0:02:14]} 21. Kg2 {[%clk 0:01:16]}  Kf7 {[%clk 0:02:10]} 22. f4 {[%clk 0:01:13]}  exf4 {[%clk 0:02:09]} 23. Rxf4+ {[%clk 0:01:08]}  Ke7 {[%clk 0:02:09]} 24. Rxf8 {[%clk 0:00:56]}  Kxf8 {[%clk 0:02:06]} 25. a4 {[%clk 0:00:55]}  Nb6 {[%clk 0:02:06]} 26. axb5 {[%clk 0:00:41]}  axb5 {[%clk 0:02:07]} 27. Rxa8+ {[%clk 0:00:39]}  Nxa8 {[%clk 0:02:07]} 28. Kf3 {[%clk 0:00:30]}  Nb6 {[%clk 0:02:06]} 29. b3 {[%clk 0:00:30]}  Ke7 {[%clk 0:02:05]} 30. c4 {[%clk 0:00:30]}  bxc4 {[%clk 0:02:04]} 31. bxc4 {[%clk 0:00:31]}  e5 {[%clk 0:02:03]} 32. d5 {[%clk 0:00:19]}  Na4 {[%clk 0:02:02]} 33. Nb3 {[%clk 0:00:19]}  Kf6 {[%clk 0:01:59]} 34. Ke3 {[%clk 0:00:19]}  Kg5 {[%clk 0:01:57]} 35. Kd3 {[%clk 0:00:19]}  h5 {[%clk 0:01:56]} 36. c5 {[%clk 0:00:19]}  h4 {[%clk 0:01:54]} 37. cxd6 {[%clk 0:00:16]}  cxd6 {[%clk 0:01:55]} 38. gxh4+ {[%clk 0:00:16]}  Kxh4 {[%clk 0:01:54]} 39. Na5 {[%clk 0:00:15]}  Nc5+ {[%clk 0:01:52]} 40. Ke3 {[%clk 0:00:15]}  Kxh3 {[%clk 0:01:52]} 41. Nc4 {[%clk 0:00:14]}  Nb7 {[%clk 0:01:52]} 42. Kf3 {[%clk 0:00:10]}  g5 {[%clk 0:01:52]} 43. Ne3 {[%clk 0:00:10]}  Na5 {[%clk 0:01:51]} 44. Nf5 {[%clk 0:00:10]}  Nc4 {[%clk 0:01:51]} 45. Nh6 {[%clk 0:00:07]}  g4+ {[%clk 0:01:49]} 46. Nxg4 {[%clk 0:00:06]}  Nd2+ {[%clk 0:01:49]} 47. Ke3 {[%clk 0:00:06]}  Kxg4 {[%clk 0:01:49]} 0-1


[Site "https://www.chess.com"]

[Event "Titled Tuesday Blitz April 18 Early 2023"]
[White "Yeletsky, Ivan"]
[Black "djokovic74"]
[WhiteFideId "24180327"]
[WhiteElo "2422"]
[BlackElo "2572"]
[Result "0-1"]
[Round "02"]
[TimeControl "180+2"]
[Date "2023.04.18"]
[WhiteClock "0:00:02"]
[BlackClock "0:00:04"]

1. e4 {[%clk 0:03:00]}  e6 {[%clk 0:02:58]} 2. d4 {[%clk 0:03:00]}  d5 {[%clk 0:02:58]} 3. Nd2 {[%clk 0:03:00]}  Nf6 {[%clk 0:02:56]} 4. Bd3 {[%clk 0:02:57]}  c5 {[%clk 0:02:56]} 5. c3 {[%clk 0:02:57]}  cxd4 {[%clk 0:02:55]} 6. e5 {[%clk 0:02:54]}  dxc3 {[%clk 0:02:47]} 7. bxc3 {[%clk 0:02:54]}  Nfd7 {[%clk 0:02:47]} 8. Ngf3 {[%clk 0:02:54]}  Nc6 {[%clk 0:02:47]} 9. O-O {[%clk 0:02:55]}  Ndxe5 {[%clk 0:02:41]} 10. Nxe5 {[%clk 0:02:55]}  Nxe5 {[%clk 0:02:42]} 11. Bc2 {[%clk 0:02:56]}  Be7 {[%clk 0:02:28]} 12. Qh5 {[%clk 0:02:55]}  Ng6 {[%clk 0:02:21]} 13. Nf3 {[%clk 0:02:55]}  O-O {[%clk 0:02:06]} 14. Re1 {[%clk 0:02:54]}  Bd7 {[%clk 0:01:56]} 15. Ne5 {[%clk 0:02:51]}  Bf6 {[%clk 0:01:49]} 16. Bf4 {[%clk 0:02:33]}  Ba4 {[%clk 0:01:10]} 17. Bb1 {[%clk 0:02:07]}  d4 {[%clk 0:01:10]} 18. Re4 {[%clk 0:01:56]}  Qa5 {[%clk 0:00:20]} 19. Bd3 {[%clk 0:01:12]}  Qxc3 {[%clk 0:00:18]} 20. Rf1 {[%clk 0:01:08]}  Bxe5 {[%clk 0:00:18]} 21. Bb1 {[%clk 0:00:31]}  Bxf4 {[%clk 0:00:16]} 22. Rxf4 {[%clk 0:00:31]}  d3 {[%clk 0:00:17]} 23. Rxa4 {[%clk 0:00:30]}  Rfd8 {[%clk 0:00:16]} 24. g3 {[%clk 0:00:24]}  d2 {[%clk 0:00:15]} 25. Rd1 {[%clk 0:00:22]}  Rd5 {[%clk 0:00:15]} 26. Qg4 {[%clk 0:00:19]}  a5 {[%clk 0:00:09]} 27. Rc4 {[%clk 0:00:18]}  Qb2 {[%clk 0:00:07]} 28. Rc2 {[%clk 0:00:18]}  Qb4 {[%clk 0:00:06]} 29. Rc4 {[%clk 0:00:16]}  Qd6 {[%clk 0:00:02]} 30. Qe2 {[%clk 0:00:12]}  Rd8 {[%clk 0:00:02]} 31. h4 {[%clk 0:00:08]}  b5 {[%clk 0:00:03]} 32. Rc2 {[%clk 0:00:06]}  h6 {[%clk 0:00:02]} 33. Rc3 {[%clk 0:00:06]}  Ne5 {[%clk 0:00:03]} 34. Re3 {[%clk 0:00:07]}  Nc4 {[%clk 0:00:03]} 35. Re4 {[%clk 0:00:07]}  Nb2 {[%clk 0:00:03]} 36. Rg4 {[%clk 0:00:05]}  Nxd1 {[%clk 0:00:03]} 37. Qxd1 {[%clk 0:00:05]}  f5 {[%clk 0:00:03]} 38. Rg6 {[%clk 0:00:05]}  Re5 {[%clk 0:00:04]} 39. Kg2 {[%clk 0:00:04]}  Qd5+ {[%clk 0:00:03]} 40. f3 {[%clk 0:00:02]}  Re1 {[%clk 0:00:03]} 41. Qc2 {[%clk 0:00:01]}  d1=Q {[%clk 0:00:04]} 42. Qc7 {[%clk 0:00:02]}  Q1d2+ {[%clk 0:00:04]} 43. Kh3 {[%clk 0:00:02]}  Rh1# {[%clk 0:00:04]} 0-1


[Site "https://www.chess.com"]